bitfinex-derivatives/quotes_ETHF0:USTF0_20260113
["timestamp","ask_amount","ask_price","bid_price","bid_amount"]
[1768307821653,0.00243776,3136.7,3135.6,1.22384417]
[1768307821852,0.99099973,3136.6,3135.6,1.22384417]
[1768307822054,0.99099973,3136.5,3135.6,1.22384417]
[1768307822353,0.99099973,3136.4,3135.6,1.22384417]
[1768307822547,0.00243776,3136.7,3135.6,1.22384417]
[1768307822749,0.9899139,3136.6,3135.6,1.22384417]
[1768307822947,0.9899139,3136.5,3135.6,1.22384417]
[1768307823154,0.9899139,3136.4,3135.6,1.22384417]
[1768307823453,0.00243776,3136.7,3135.6,1.22384417]
[1768307823653,0.98740513,3136.6,3135.6,1.22384417]
[1768307823845,0.98740513,3136.5,3135.6,1.22384417]
[1768307824046,0.98740513,3136.4,3135.6,1.22384417]
[1768307824245,0.00243776,3136.7,3135.6,1.22384417]
[1768307824545,0.98740326,3136.6,3135.6,1.22384417]
[1768307824745,0.98740326,3136.5,3135.6,1.22384417]
[1768307824946,0.98740326,3136.4,3135.6,1.22384417]
[1768307825146,0.00243776,3136.7,3135.6,1.22384417]
[1768307825342,0.98740022,3136.6,3135.6,1.22384417]
[1768307825553,0.98740022,3136.5,3135.6,1.22384417]
[1768307825854,0.98740022,3136.4,3135.6,1.22384417]
[1768307826061,0.00243776,3136.7,3135.6,1.22384417]
[1768307826358,0.98739217,3136.6,3135.6,1.22384417]
[1768307826548,0.98739217,3136.5,3135.6,1.22384417]
[1768307826744,0.00243776,3136.7,3135.6,1.22384417]
[1768307827053,0.98738762,3136.6,3135.6,1.22384417]
[1768307827352,0.98738762,3136.5,3135.6,1.22384417]
[1768307827551,0.00243776,3136.7,3135.6,1.22384417]
[1768307827754,0.987381,3136.6,3135.6,1.22384417]
[1768307828058,0.987381,3136.5,3135.6,1.22384417]
[1768307828255,0.00243776,3136.7,3135.7,1.32121363]
[1768307828451,0.98737404,3136.6,3135.9,1.32121363]
[1768307828656,0.00243776,3136.7,3136.1,1.0863829]
[1768307829353,0.00243776,3136.7,3135.9,2.40759653]
[1768307829560,0.00243776,3136.7,3136.0,1.32121363]
[1768307834263,0.00243776,3136.7,3135.9,1.08595877]
[1768307835054,0.00243776,3136.7,3135.6,1.32121363]
[1768307835252,1.08595877,3136.5,3135.6,1.32121363]
[1768307835452,1.08595877,3136.5,3135.6,2.4071724]
[1768307840361,0.00243776,3136.7,3135.6,2.4071724]
[1768307840562,1.08595877,3136.6,3135.6,2.4071724]
[1768307840762,1.08595877,3136.6,3135.6,1.32121363]
[1768307840962,1.08595877,3136.6,3135.7,1.08595877]
[1768307842363,1.08595877,3136.6,3135.6,1.32121363]
[1768307842566,1.08595877,3136.6,3135.7,1.08595877]
[1768307843662,1.08595877,3136.6,3135.6,1.32121363]
[1768307843862,1.08595877,3136.6,3135.7,1.08595877]
[1768307853170,0.00243776,3136.7,3135.7,1.08595877]
[1768307853370,1.08595877,3136.6,3135.7,1.08595877]
[1768307859168,1.08595877,3136.4,3135.2,1.56153251]
[1768307859373,1.08595877,3136.4,3135.5,1.08595877]
[1768307869390,0.00243776,3136.7,3135.5,1.08595877]
[1768307869687,1.08595877,3136.4,3135.5,1.08595877]
[1768307874895,1.08595877,3136.5,3135.5,2.48784128]
[1768307875087,1.08595877,3136.5,3135.7,1.08595877]
[1768307879200,1.08595877,3136.5,3135.6,1.08595877]
[1768307887211,1.08595877,3136.3,3135.5,2.48784128]
[1768307888009,1.08595877,3136.3,3135.3,1.08595877]
[1768307889800,1.08595877,3136.1,3135.1,1.53234659]
[1768307890100,1.08595877,3135.9,3135.1,1.53234659]
[1768307890807,1.08595877,3136.1,3135.1,1.53234659]
[1768307893305,1.08649982,3136.3,3135.1,1.53234659]
[1768307905020,0.15958,3136.6,3135.1,2.61884641]
[1768307905217,0.98601037,3136.5,3135.2,1.44828571]
[1768307905418,0.98601037,3136.4,3135.2,1.44828571]
[1768307905612,0.98601037,3136.3,3135.2,1.44828571]
[1768307905812,0.15958,3136.6,3135.2,1.44828571]
[1768307906017,0.98601574,3136.5,3135.2,1.44828571]
[1768307906314,0.98601574,3136.4,3135.2,1.44828571]
[1768307906521,0.98601574,3136.3,3135.2,1.44828571]
[1768307906720,0.15958,3136.6,3135.2,1.44828571]
[1768307907021,0.986031,3136.5,3135.2,1.44828571]
[1768307907222,0.986031,3136.4,3135.2,1.44828571]
[1768307907520,0.986031,3136.3,3135.2,1.44828571]
[1768307907722,0.15958,3136.6,3135.2,1.44828571]
[1768307908025,0.98605097,3136.5,3135.2,1.44828571]
[1768307908318,0.98605097,3136.4,3135.2,1.44828571]
[1768307908520,0.98605097,3136.3,3135.2,1.44828571]
[1768307908820,0.15958,3136.6,3135.2,1.44828571]
[1768307909019,0.98607737,3136.5,3135.2,1.44828571]
[1768307909218,0.98607737,3136.4,3135.2,1.44828571]
[1768307913130,0.98607737,3136.3,3135.2,1.44828571]
[1768307913426,1.08649982,3136.5,3135.2,1.44828571]
[1768307913626,0.98627055,3136.4,3135.2,1.44828571]
[1768307913831,0.98627055,3136.3,3135.2,1.44828571]
[1768307914030,1.08649982,3136.5,3135.2,1.44828571]
[1768307914222,0.98634406,3136.4,3135.2,1.44828571]
[1768307914423,0.98634406,3136.3,3135.2,1.44828571]
[1768307914620,1.08649982,3136.5,3135.2,1.44828571]
[1768307914821,0.98634407,3136.4,3135.2,1.44828571]
[1768307915020,0.98634407,3136.3,3135.2,1.44828571]
[1768307915221,1.08649982,3136.5,3135.2,1.44828571]
[1768307915428,0.98643363,3136.4,3135.2,1.44828571]
[1768307915624,0.98643363,3136.3,3135.2,1.44828571]
[1768307915824,1.08649982,3136.5,3135.2,1.44828571]
[1768307916125,0.98643363,3136.4,3135.2,1.44828571]
[1768307916324,0.98643363,3136.3,3135.2,1.44828571]
[1768307916531,1.08649982,3136.5,3135.2,1.44828571]
[1768307916732,0.98654736,3136.4,3135.2,1.44828571]
[1768307917030,0.98654736,3136.3,3135.2,1.44828571]
[1768307917229,1.08649982,3136.5,3135.2,1.44828571]
[1768307917533,0.98668921,3136.4,3135.2,1.44828571]
[1768307917722,0.98668921,3136.3,3135.2,1.44828571]
[1768307917923,1.08649982,3136.5,3135.2,1.44828571]
[1768307918125,0.98668935,3136.4,3135.2,1.44828571]
[1768307918323,0.98668935,3136.3,3135.2,1.44828571]
[1768307918533,1.08649982,3136.5,3135.2,1.44828571]
[1768307918735,0.98679256,3136.4,3135.2,1.44828571]
[1768307918931,0.98679256,3136.3,3135.2,1.44828571]
[1768307919134,1.08649982,3136.5,3135.2,1.44828571]
[1768307919325,0.98696567,3136.4,3135.2,1.44828571]
[1768307919525,0.98696567,3136.3,3135.2,1.44828571]
[1768307919725,1.08649982,3136.5,3135.2,1.44828571]
[1768307919925,0.98696567,3136.4,3135.2,1.44828571]
[1768307920224,0.98696567,3136.3,3135.2,1.44828571]
[1768307920423,1.08649982,3136.5,3135.2,1.44828571]
[1768307920625,0.98696512,3136.4,3135.2,1.44828571]
[1768307920920,0.98696512,3136.3,3135.2,1.44828571]
[1768307921125,1.08649982,3136.5,3135.2,1.44828571]
[1768307921320,0.98470725,3136.4,3135.2,1.44828571]
[1768307921534,0.98470725,3136.3,3135.2,1.44828571]
[1768307921834,1.08649982,3136.5,3135.2,1.44828571]
[1768307922034,0.98470725,3136.4,3135.2,1.44828571]
[1768307922227,0.98470725,3136.3,3135.2,1.44828571]
[1768307922428,1.08649982,3136.5,3135.2,1.44828571]
[1768307922637,0.98470078,3136.4,3135.2,1.44828571]
[1768307922827,0.98470078,3136.3,3135.2,1.44828571]
[1768307923027,1.08649982,3136.5,3135.2,1.44828571]
[1768307923228,0.98469622,3136.4,3135.2,1.44828571]
[1768307923429,0.98469622,3136.3,3135.2,1.44828571]
[1768307923726,1.08649982,3136.5,3135.2,1.44828571]
[1768307924026,0.98469605,3136.4,3135.2,1.44828571]
[1768307924226,0.98469605,3136.3,3135.2,1.44828571]
[1768307924525,1.08649982,3136.5,3135.2,1.44828571]
[1768307924726,0.98469053,3136.4,3135.2,1.44828571]
[1768307924927,0.98469053,3136.3,3135.2,1.44828571]
[1768307925129,1.08649982,3136.5,3135.2,1.44828571]
[1768307925329,0.98466991,3136.4,3135.2,1.44828571]
[1768307925529,0.98466991,3136.3,3135.2,1.44828571]
[1768307925732,1.08649982,3136.5,3135.2,1.44828571]
[1768307926030,0.98466991,3136.4,3135.2,1.44828571]
[1768307926230,0.98466991,3136.3,3135.2,1.44828571]
[1768307926432,1.08649982,3136.5,3135.2,1.44828571]
[1768307926635,0.98466126,3136.4,3135.2,1.44828571]
[1768307926835,0.98466126,3136.3,3135.2,1.44828571]
[1768307927037,1.08649982,3136.5,3135.2,1.44828571]
[1768307927237,0.98465398,3136.4,3135.2,1.44828571]
[1768307927436,0.98465398,3136.3,3135.2,1.44828571]
[1768307927644,1.08649982,3136.5,3135.2,1.44828571]
[1768307927846,0.98465397,3136.4,3135.2,1.44828571]
[1768307928038,0.98465397,3136.3,3135.2,1.44828571]
[1768307928238,1.08649982,3136.5,3135.2,1.44828571]
[1768307928438,0.98465022,3136.4,3135.2,1.44828571]
[1768307928636,0.98465022,3136.3,3135.2,1.44828571]
[1768307928837,1.08649982,3136.5,3135.2,1.44828571]
[1768307929038,0.9846499,3136.4,3135.2,1.44828571]
[1768307929238,0.9846499,3136.3,3135.2,1.44828571]
[1768307929538,1.08649982,3136.5,3135.2,1.44828571]
[1768307929739,0.9846462,3136.4,3135.2,1.44828571]
[1768307929939,0.9846462,3136.3,3135.2,1.44828571]
[1768307930142,1.08649982,3136.5,3135.2,1.44828571]
[1768307930344,0.98464518,3136.4,3135.2,1.44828571]
[1768307930645,0.98464518,3136.3,3135.2,1.44828571]
[1768307930847,1.08649982,3136.5,3135.2,1.44828571]
[1768307931152,0.98464473,3136.4,3135.2,1.44828571]
[1768307931443,0.98464473,3136.3,3135.2,1.44828571]
[1768307931645,1.08649982,3136.5,3135.2,1.44828571]
[1768307931843,0.98464228,3136.4,3135.2,1.44828571]
[1768307932043,0.98464228,3136.3,3135.2,1.44828571]
[1768307932247,1.08649982,3136.5,3135.2,1.44828571]
[1768307932446,0.9846411,3136.4,3135.2,1.44828571]
[1768307932648,0.9846411,3136.3,3135.2,1.44828571]
[1768307932847,1.08649982,3136.5,3135.2,1.44828571]
[1768307933148,0.9846411,3136.4,3135.7,2.61021944]
[1768307933343,0.00243776,3136.7,3135.7,2.61021944]
[1768307933646,0.9845848,3136.6,3135.7,1.52371962]
[1768307933847,0.9845848,3136.5,3135.7,1.52371962]
[1768307934043,0.9845848,3136.4,3135.7,1.52371962]
[1768307934244,0.00243776,3136.7,3135.7,1.52371962]
[1768307934445,0.98444697,3136.6,3135.7,1.52371962]
[1768307934644,0.98444697,3136.5,3135.7,1.52371962]
[1768307934942,0.00243776,3136.7,3135.7,1.52371962]
[1768307935143,0.98444692,3136.6,3135.7,1.52371962]
[1768307935334,0.98444692,3136.5,3135.7,1.52371962]
[1768307935538,0.00243776,3136.7,3135.7,1.52371962]
[1768307935839,0.98430217,3136.6,3135.7,1.52371962]
[1768307936041,0.98430217,3136.5,3135.7,1.52371962]
[1768307936233,0.00243776,3136.7,3135.7,1.52371962]
[1768307936440,0.98420253,3136.6,3135.7,1.52371962]
[1768307936641,0.98420253,3136.5,3135.7,1.52371962]
[1768307936943,0.00243776,3136.7,3135.7,1.52371962]
[1768307937141,0.98420249,3136.6,3135.7,1.52371962]
[1768307937447,0.98420249,3136.5,3135.7,1.52371962]
[1768307937647,0.00243776,3136.7,3135.7,1.52371962]
[1768307937835,0.9841258,3136.6,3135.7,1.52371962]
[1768307938041,0.9841258,3136.5,3135.7,1.52371962]
[1768307938347,0.00243776,3136.7,3135.7,1.52371962]
[1768307938549,0.98406385,3136.6,3135.7,1.52371962]
[1768307938748,0.98406385,3136.5,3135.7,1.52371962]
[1768307938947,0.00243776,3136.7,3135.7,1.52371962]
[1768307939150,0.98406384,3136.6,3135.7,1.52371962]
[1768307939336,0.98406384,3136.5,3135.7,1.52371962]
[1768307939536,0.00243776,3136.7,3135.7,1.52371962]
[1768307939742,0.98401391,3136.6,3135.7,1.52371962]
[1768307939939,0.98401391,3136.5,3135.7,1.52371962]
[1768307940143,0.00243776,3136.7,3135.7,1.52371962]
[1768307940353,0.98400945,3136.6,3135.7,1.52371962]
[1768307940653,0.98400945,3136.5,3135.7,1.52371962]
[1768307940951,0.00243776,3136.7,3135.7,1.52371962]
[1768307941149,0.98400975,3136.6,3135.7,1.52371962]
[1768307941452,0.00243776,3136.7,3135.7,1.52371962]
[1768307941655,0.98391451,3136.6,3135.7,1.52371962]
[1768307941845,0.00243776,3136.7,3135.7,1.52371962]
[1768307942045,0.98391282,3136.6,3135.7,1.52371962]
[1768307942246,0.00243776,3136.7,3135.7,1.52371962]
[1768307942448,0.98384484,3136.6,3135.7,1.52371962]
[1768307942751,0.00243776,3136.7,3135.7,1.52371962]
[1768307942952,0.98384483,3136.6,3135.7,1.52371962]
[1768307943147,0.00243776,3136.7,3135.7,1.52371962]
[1768307943347,0.98379037,3136.6,3135.7,1.52371962]
[1768307943552,0.00243776,3136.7,3135.7,1.52371962]
[1768307943752,0.98379037,3136.6,3135.7,1.52371962]
[1768307943949,0.00243776,3136.7,3135.7,1.52371962]
[1768307944152,0.98379037,3136.6,3135.7,1.52371962]
[1768307944354,0.00243776,3136.7,3135.7,1.52371962]
[1768307944555,0.98374665,3136.6,3135.7,1.52371962]
[1768307944752,0.00243776,3136.7,3135.7,1.52371962]
[1768307944953,0.98374664,3136.6,3135.7,1.52371962]
[1768307945156,0.00243776,3136.7,3135.7,1.52371962]
[1768307945345,0.9837137,3136.6,3135.7,1.52371962]
[1768307945549,0.00243776,3136.7,3135.7,1.52371962]
[1768307952961,0.00243776,3136.7,3135.9,1.42583197]
[1768307953355,1.08845391,3136.7,3135.9,1.42583197]
[1768307964165,1.08845391,3136.7,3135.7,1.08601615]
[1768307969983,1.08845391,3136.7,3135.7,2.47792493]
[1768307975293,0.98445257,3136.6,3135.7,2.47792493]
[1768307975591,1.08845391,3136.7,3135.7,2.47792493]
[1768307975793,0.98445256,3136.6,3135.7,2.47792493]
[1768307975994,1.08845391,3136.7,3135.7,2.47792493]
[1768307976185,0.98445191,3136.6,3135.7,2.47792493]
[1768307976385,1.08845391,3136.7,3135.7,2.47792493]
[1768307976586,0.98447195,3136.6,3135.7,2.47792493]
[1768307976792,1.08845391,3136.7,3135.7,2.47792493]
[1768307976992,0.98447173,3136.6,3135.7,2.47792493]
[1768307977192,1.08845391,3136.7,3135.7,2.47792493]
[1768307977381,0.98449673,3136.6,3135.7,2.47792493]
[1768307977585,1.08845391,3136.7,3135.7,2.47792493]
[1768307977787,0.98449673,3136.6,3135.7,2.47792493]
[1768307978087,1.08845391,3136.7,3135.7,2.47792493]
[1768307978393,0.98452856,3136.6,3135.7,2.47792493]
[1768307978594,1.08845391,3136.7,3135.7,2.47792493]
[1768307978792,0.98452856,3136.6,3135.7,2.47792493]
[1768307978992,1.08845391,3136.7,3135.7,2.47792493]
[1768307979193,0.98452857,3136.6,3135.7,2.47792493]
[1768307979395,1.08845391,3136.7,3135.7,2.47792493]
[1768307979592,0.98457147,3136.6,3135.7,2.47792493]
[1768307979797,1.08845391,3136.7,3135.7,2.47792493]
[1768307979986,0.98457147,3136.6,3135.7,2.47792493]
[1768307980185,1.08845391,3136.7,3135.7,2.47792493]
[1768307980393,0.98464125,3136.6,3135.7,2.47792493]
[1768307980596,1.08845391,3136.7,3135.7,2.47792493]
[1768307980797,0.98464125,3136.6,3135.7,2.47792493]
[1768307980994,1.08845391,3136.7,3135.7,2.47792493]
[1768307981294,0.98464126,3136.6,3135.7,2.47792493]
[1768307981492,1.08845391,3136.7,3135.7,2.47792493]
[1768307981694,0.98401652,3136.6,3135.7,2.47792493]
[1768307981897,1.08845391,3136.7,3135.7,2.47792493]
[1768307982090,0.98401653,3136.6,3135.7,2.47792493]
[1768307982399,1.08845391,3136.7,3135.7,2.47792493]
[1768307982599,0.98404858,3136.6,3135.7,2.47792493]
[1768307982800,1.08845391,3136.7,3135.7,2.47792493]
[1768307983199,0.98404835,3136.6,3135.7,2.47792493]
[1768307983395,1.08845391,3136.7,3135.7,2.47792493]
[1768307983591,0.9840486,3136.6,3135.7,2.47792493]
[1768307983790,1.08845391,3136.7,3135.7,2.47792493]
[1768307983991,0.98406926,3136.6,3135.7,2.47792493]
[1768307984187,1.08845391,3136.7,3135.7,2.47792493]
[1768307984394,0.98403884,3136.6,3135.7,2.47792493]
[1768307984686,1.08845391,3136.7,3135.7,2.47792493]
[1768307984890,0.98403471,3136.6,3135.7,2.47792493]
[1768307985094,1.08845391,3136.7,3135.7,2.47792493]
[1768307985291,0.98402408,3136.6,3135.7,2.47792493]
[1768307985490,1.08845391,3136.7,3135.7,2.47792493]
[1768307985697,0.98402408,3136.6,3135.7,2.47792493]
[1768307985899,1.08845391,3136.7,3135.7,2.47792493]
[1768307986190,0.98402415,3136.6,3135.7,2.47792493]
[1768307986396,1.08845391,3136.7,3135.7,2.47792493]
[1768307986597,0.98401588,3136.6,3135.7,2.47792493]
[1768307986801,1.08845391,3136.7,3135.7,2.47792493]
[1768307987002,0.98401583,3136.6,3135.7,2.47792493]
[1768307987201,1.08845391,3136.7,3135.7,2.47792493]
[1768307987402,0.98400899,3136.6,3135.7,2.47792493]
[1768307987700,1.08845391,3136.7,3135.7,2.47792493]
[1768307987893,0.98400899,3136.6,3135.7,2.47792493]
[1768307988093,1.08845391,3136.7,3135.7,2.47792493]
[1768307988294,0.98400358,3136.6,3135.7,2.47792493]
[1768307988494,1.08845391,3136.7,3135.7,2.47792493]
[1768307988695,0.98400358,3136.6,3135.7,2.47792493]
[1768307988896,1.08845391,3136.7,3135.7,1.39190878]
[1768307989194,0.9840039,3136.6,3135.7,2.47792493]
[1768307989393,1.08845391,3136.7,3135.7,2.47792493]
[1768307989598,0.98399766,3136.6,3135.7,2.47792493]
[1768307989797,1.08845391,3136.7,3135.7,2.47792493]
[1768307990097,0.9839975,3136.6,3135.7,2.47792493]
[1768307990396,1.08845391,3136.7,3135.7,2.47792493]
[1768307990596,0.98399336,3136.6,3135.7,2.47792493]
[1768307990800,1.08845391,3136.7,3135.7,2.47792493]
[1768307990992,0.98399336,3136.6,3135.7,2.47792493]
[1768307991195,1.08845391,3136.7,3135.7,2.47792493]
[1768307991495,0.9839899,3136.6,3135.7,2.47792493]
[1768307991696,1.08845391,3136.7,3135.7,2.47792493]
[1768307991995,0.98398974,3136.6,3135.7,2.47792493]
[1768307992197,1.08845391,3136.7,3135.7,2.47792493]
[1768307992395,0.98398821,3136.6,3135.7,2.47792493]
[1768307992703,1.08845391,3136.7,3135.7,2.47792493]
[1768307992704,0.00243776,3136.7,3135.9,1.08601615]
[1768307992896,0.98398802,3136.6,3135.9,1.08601615]
[1768307993096,0.00243776,3136.7,3135.9,1.08601615]
[1768307993302,0.98398727,3136.6,3135.9,1.08601615]
[1768307993509,0.00243776,3136.7,3135.9,1.08601615]
[1768307993803,0.98398727,3136.6,3135.9,1.08601615]
[1768307994002,0.00243776,3136.7,3135.9,1.08601615]
[1768307994205,0.98398732,3136.6,3135.9,1.08601615]
[1768307994504,0.00243776,3136.7,3135.7,2.47792493]
[1768307994705,0.98398743,3136.6,3135.7,2.47792493]
[1768307994897,0.00243776,3136.7,3135.7,2.47792493]
[1768307995206,0.98398743,3136.6,3135.8,1.43987886]
[1768307995504,0.00243776,3136.7,3135.9,1.08601615]
[1768307995704,0.9839856,3136.6,3135.9,1.08601615]
[1768307995906,0.00243776,3136.7,3135.9,1.08601615]
[1768307996202,0.9839856,3136.6,3135.9,1.08601615]
[1768307996403,1.08601615,3136.6,3135.8,1.43987886]
[1768307996602,1.08601615,3136.6,3135.8,2.52589501]
[1768308000208,1.08601615,3136.6,3135.8,1.43987886]
[1768308002205,1.08601615,3136.2,3135.4,1.43987886]
[1768308004308,1.08601615,3136.4,3135.4,1.43987886]
[1768308005316,1.08601615,3136.4,3135.5,1.08601615]
[1768308015318,1.08861574,3136.7,3135.4,1.43987886]
[1768308015518,0.98243369,3136.6,3135.4,1.43987886]
[1768308015721,1.08861574,3136.7,3135.4,1.43987886]
[1768308015919,0.98243365,3136.6,3135.4,1.43987886]
[1768308016120,1.08861574,3136.7,3135.4,1.43987886]
[1768308016412,0.98242837,3136.6,3135.4,1.43987886]
[1768308016618,1.08861574,3136.7,3135.4,1.43987886]
[1768308016918,0.98242797,3136.6,3135.4,1.43987886]
[1768308017119,1.08861574,3136.7,3135.4,1.43987886]
[1768308017317,0.98242719,3136.6,3135.4,1.43987886]
[1768308017518,1.08861574,3136.7,3135.4,1.43987886]
[1768308017720,0.98242797,3136.6,3135.4,1.43987886]
[1768308018022,1.08861574,3136.7,3135.4,1.43987886]
[1768308018222,0.98210809,3136.6,3135.4,1.43987886]
[1768308018423,1.08861574,3136.7,3135.4,1.43987886]
[1768308018628,0.98191622,3136.6,3135.4,1.43987886]
[1768308018819,1.08861574,3136.7,3135.4,1.43987886]
[1768308019123,0.98191712,3136.6,3135.4,1.43987886]
[1768308019320,1.08861574,3136.7,3135.4,1.43987886]
[1768308019515,0.98191636,3136.6,3135.4,1.43987886]
[1768308019716,1.08861574,3136.7,3135.4,1.43987886]
[1768308019921,0.98191652,3136.6,3135.4,1.43987886]
[1768308020121,1.08861574,3136.7,3135.4,1.43987886]
[1768308020422,0.98191648,3136.6,3135.4,1.43987886]
[1768308020621,1.08861574,3136.7,3135.4,1.43987886]
[1768308020822,0.98190639,3136.6,3135.4,1.43987886]
[1768308021024,1.08861574,3136.7,3135.4,1.43987886]
[1768308021223,0.98190809,3136.6,3135.4,1.43987886]
[1768308021425,1.08861574,3136.7,3135.4,1.43987886]
[1768308021628,0.9818891,3136.6,3135.4,1.43987886]
[1768308021827,1.08861574,3136.7,3135.4,1.43987886]
[1768308022027,0.98188901,3136.6,3135.4,1.43987886]
[1768308022230,1.08861574,3136.7,3135.4,1.43987886]
[1768308022421,0.98188585,3136.6,3135.4,1.43987886]
[1768308022622,1.08861574,3136.7,3135.4,1.43987886]
[1768308022822,0.98189267,3136.6,3135.4,1.43987886]
[1768308023023,1.08861574,3136.7,3135.4,1.43987886]
[1768308023215,0.98189766,3136.6,3135.4,1.43987886]
[1768308023422,1.08861574,3136.7,3135.4,1.43987886]
[1768308023714,0.98190119,3136.6,3135.4,1.43987886]
[1768308023919,1.08861574,3136.7,3135.4,1.43987886]
[1768308024125,0.9818808,3136.6,3135.4,1.43987886]
[1768308024325,1.08861574,3136.7,3135.4,1.43987886]
[1768308024529,0.98181602,3136.6,3135.4,1.43987886]
[1768308024733,1.08861574,3136.7,3135.4,1.43987886]
[1768308024926,0.98161719,3136.6,3135.4,1.43987886]
[1768308025223,1.08861574,3136.7,3135.4,1.43987886]
[1768308025423,0.98162259,3136.6,3135.4,1.43987886]
[1768308025724,1.08861574,3136.7,3135.4,1.43987886]
[1768308025924,0.98162225,3136.6,3135.4,1.43987886]
[1768308026130,1.08861574,3136.7,3135.4,1.43987886]
[1768308026323,0.98163287,3136.6,3135.4,1.43987886]
[1768308026530,1.08861574,3136.7,3135.4,1.43987886]
[1768308026730,0.98163642,3136.6,3135.4,1.43987886]
[1768308026931,1.08861574,3136.7,3135.4,1.43987886]
[1768308027131,0.98163576,3136.6,3135.4,1.43987886]
[1768308027430,1.08861574,3136.7,3135.4,1.43987886]
[1768308027629,0.98164754,3136.6,3135.4,1.43987886]
[1768308027929,1.08861574,3136.7,3135.4,1.43987886]
[1768308028130,0.9816474,3136.6,3135.4,1.43987886]
[1768308028330,1.08861574,3136.7,3135.4,1.43987886]
[1768308028522,0.98166035,3136.6,3135.4,1.43987886]
[1768308028722,1.08861574,3136.7,3135.4,1.43987886]
[1768308028919,0.98166036,3136.6,3135.4,1.43987886]
[1768308029225,1.08861574,3136.7,3135.4,1.43987886]
[1768308029524,0.98168072,3136.6,3135.4,1.43987886]
[1768308029726,1.08861574,3136.7,3135.4,1.43987886]
[1768308030025,0.98168327,3136.6,3135.4,1.43987886]
[1768308030224,1.08861574,3136.7,3135.4,1.43987886]
[1768308030426,0.98168294,3136.6,3135.4,1.43987886]
[1768308030626,1.08861574,3136.7,3135.4,1.43987886]
[1768308030925,0.98161683,3136.6,3135.4,1.43987886]
[1768308031125,1.08861574,3136.7,3135.4,1.43987886]
[1768308031325,0.98152775,3136.6,3135.4,1.43987886]
[1768308031532,1.08861574,3136.7,3135.4,1.43987886]
[1768308031720,0.98154086,3136.6,3135.4,1.43987886]
[1768308031919,1.08861574,3136.7,3135.4,1.43987886]
[1768308032124,0.98153987,3136.6,3135.4,1.43987886]
[1768308032325,1.08861574,3136.7,3135.4,1.43987886]
[1768308032528,0.98152624,3136.6,3135.4,1.43987886]
[1768308032730,1.08861574,3136.7,3135.4,1.43987886]
[1768308032930,0.9815206,3136.6,3135.4,1.43987886]
[1768308033130,1.08861574,3136.7,3135.4,1.43987886]
[1768308033337,0.98146484,3136.6,3135.4,1.43987886]
[1768308033633,1.08861574,3136.7,3135.4,1.43987886]
[1768308033832,0.98119691,3136.6,3135.4,1.43987886]
[1768308034030,1.08861574,3136.7,3135.4,1.43987886]
[1768308034233,0.98119656,3136.6,3135.4,1.43987886]
[1768308034434,1.08861574,3136.7,3135.4,1.43987886]
[1768308034633,0.9811737,3136.6,3135.4,1.43987886]
[1768308034934,1.08861574,3136.7,3135.4,1.43987886]
[1768308035133,0.98117441,3136.6,3135.4,1.43987886]
[1768308035336,1.08861574,3136.7,3135.4,1.43987886]
[1768308035635,0.98115986,3136.6,3135.4,1.43987886]
[1768308035936,1.08861574,3136.7,3135.4,1.43987886]
[1768308036136,0.98114504,3136.6,3135.4,1.43987886]
[1768308036336,1.08861574,3136.7,3135.4,1.43987886]
[1768308036540,0.98113228,3136.6,3135.4,1.43987886]
[1768308036733,1.08861574,3136.7,3135.4,1.43987886]
[1768308036924,0.98111548,3136.6,3135.4,1.43987886]
[1768308037126,1.08861574,3136.7,3135.4,1.43987886]
[1768308037329,0.98092869,3136.6,3135.4,1.43987886]
[1768308037536,1.08861574,3136.7,3135.4,1.43987886]
[1768308037834,0.98090973,3136.6,3135.4,1.43987886]
[1768308038036,1.08861574,3136.7,3135.4,1.43987886]
[1768308038239,0.98090993,3136.6,3135.4,1.43987886]
[1768308038438,1.08861574,3136.7,3135.4,1.43987886]
[1768308038638,0.98090042,3136.6,3135.4,1.43987886]
[1768308038839,1.08861574,3136.7,3135.4,1.43987886]
[1768308039038,0.98090049,3136.6,3135.4,1.43987886]
[1768308039239,1.08861574,3136.7,3135.4,1.43987886]
[1768308039436,0.98089234,3136.6,3135.4,1.43987886]
[1768308039638,1.08861574,3136.7,3135.5,1.37298653]
[1768308039838,0.98088593,3136.6,3135.5,1.37298653]
[1768308040035,0.00243776,3136.7,3136.1,1.08617798]
[1768308040338,0.00243776,3136.7,3136.1,2.45916451]
[1768308046745,0.00243776,3136.7,3136.1,1.37298653]
[1768308057855,0.1595,3138.1,3136.6,1.37298653]
[1768308058154,1.08617798,3137.9,3136.6,1.37298653]
[1768308058356,0.97844403,3137.8,3136.6,1.37298653]
[1768308058744,0.98236175,3137.8,3136.6,1.37641561]
[1768308058948,0.00391772,3137.8,3136.6,1.37641561]
[1768308061852,0.00391772,3137.8,3136.7,1.08617798]
[1768308062057,0.00391772,3137.8,3136.8,1.37298653]
[1768308076479,1.0900957,3137.8,3136.6,0.00342908]
[1768308076978,1.0900957,3137.8,3136.6,1.3947563]
[1768308077373,1.08535316,3137.2,3136.6,1.3947563]
[1768308077574,1.08535316,3137.2,3136.6,0.00342908]
[1768308077877,1.08535316,3136.8,3135.8,2.47668038]
[1768308078074,1.08535316,3136.8,3136.0,1.08535316]
[1768308078680,1.08535316,3137.0,3136.0,1.08882684]
[1768308078980,1.08535316,3137.0,3136.0,2.48015406]
[1768308079180,1.08535316,3137.0,3136.1,1.39132722]
[1768308079481,1.08535316,3137.0,3136.2,1.08535316]
[1768308082681,1.08535316,3137.1,3136.2,1.08535316]
[1768308084478,1.08535316,3137.2,3136.3,1.39132722]
[1768308084669,1.08535316,3137.4,3136.4,1.08535316]
[1768308085283,1.08535316,3137.4,3136.4,2.47668038]
[1768308094188,1.08535316,3137.6,3136.6,1.08535316]
[1768308094390,0.9784788,3137.5,3136.6,1.08535316]
[1768308094592,1.08535316,3137.4,3136.4,2.47668038]
[1768308097189,1.08535316,3137.6,3136.6,1.08535316]
[1768308097388,1.08535316,3137.6,3136.6,2.48377211]
[1768308101603,1.08535316,3137.7,3136.7,1.39841895]
[1768308101907,1.08535316,3137.7,3136.8,1.08535316]
[1768308106314,1.08535316,3137.7,3136.7,1.39841895]
[1768308106610,1.08535316,3137.7,3136.7,2.48377211]
[1768308113315,1.08535316,3137.5,3136.7,2.48377211]
[1768308115018,0.00391772,3137.8,3136.7,2.48377211]
[1768308115315,1.08535316,3137.6,3136.7,2.48377211]
[1768308116616,0.00391772,3137.8,3136.9,1.08535316]
[1768308116816,0.98049134,3137.7,3136.9,1.08535316]
[1768308117116,0.00391772,3137.8,3136.9,1.08535316]
[1768308120021,0.00391772,3137.8,3136.9,2.48377211]
[1768308121124,0.98089285,3137.7,3136.9,2.48377211]
[1768308121420,1.08927088,3137.8,3136.9,2.48377211]
[1768308121622,0.98099711,3137.7,3136.9,2.48377211]
[1768308121923,1.08927088,3137.8,3136.9,2.48377211]
[1768308122224,0.981025,3137.7,3136.9,2.48377211]
[1768308122423,1.08927088,3137.8,3136.9,2.48377211]
[1768308122623,0.98112656,3137.7,3136.9,2.48377211]
[1768308122922,1.08927088,3137.8,3136.9,2.48377211]
[1768308123121,0.98112635,3137.7,3136.9,2.48377211]
[1768308123423,1.08927088,3137.8,3136.9,2.48377211]